fUSD/lending_fUSD_20250513
["ID","MTS","AMOUNT","RATE_DAILY","PERIOD"]
[360968091,1747170640383,-552.84548705,0.0001099,2]
[360968092,1747170640394,-561.74801864,0.0001099,2]
[360968093,1747170640590,-1296.07236864,0.0001099,2]
[360968110,1747170642860,-0.0121334,0.0001099,2]
[360968112,1747170642872,-379.31563316,0.0001099,2]
[360968121,1747170643086,-10.43628354,0.0001099,2]
[360968122,1747170643133,-7259.36875026,0.0001099,2]
[360968123,1747170643144,-11104.40000003,0.0001099,2]
[360968125,1747170643156,-18577.6464,0.0001099,2]
[360968128,1747170643399,-8064.3617255,0.0001099,2]
[360968129,1747170643416,-16334.38412226,0.0001099,2]
[360968130,1747170643427,-2200.0,0.0001099,2]
[360968131,1747170643900,-18423.47796438,0.0001099,2]
[360968132,1747170643912,-557.084731,0.0001099,2]
[360968133,1747170643923,-471.75623446,0.0001099,2]
[360968134,1747170643934,-1426.13691535,0.0001099,2]
[360968135,1747170644088,-5972.32283216,0.0001099,2]
[360968136,1747170644100,-428.80764473,0.0001099,2]
[360968263,1747170646242,-500.0,0.00010097,2]
[360968264,1747170646252,-327.4585427,0.00010097,2]
[360968265,1747170646261,-500.0,0.00010097,2]
[360968266,1747170646271,-500.0,0.00010097,2]
[360968267,1747170646281,-500.0,0.00010097,2]
[360968268,1747170646290,-813.541457,0.0001099,2]
[360969145,1747170751015,-367.88018617,0.00010096,2]
[360969149,1747170829810,1409.01,8.219e-05,2]
[360969152,1747171040462,-309.38275032,0.00010018,2]
[360969154,1747171042362,-280.54724968,0.00010018,2]
[360969155,1747171044315,-217.69796335,0.00010018,2]
[360969158,1747171047513,-192.37203665,0.00010018,2]
[360969230,1747171660254,-162.44,9.945e-05,2]
[360969231,1747171660280,-45.27292155,9.976e-05,2]
[360969232,1747171661899,-161.7,9.976e-05,2]
[360969233,1747171663892,-177.80679494,9.976e-05,2]
[360969234,1747171665470,-54.15028351,9.976e-05,2]
[360969355,1747171831655,-398.05286501,0.00010118,2]
[360969356,1747171831666,-801.94713499,0.00010118,2]
[360969357,1747171831676,-150.0,0.00010118,2]
[360969358,1747171831685,-300.0,0.00010118,2]
[360969359,1747171831695,-29943.9838125,0.00010119,2]
[360969360,1747171831704,-5363.76685139,0.00010119,2]
[360969361,1747171831716,-5933.588277,0.00010119,2]
[360969362,1747171831728,-1047.85311258,0.00010119,2]
[360969363,1747171831777,-513.74121267,0.00010119,2]
[360969364,1747171831789,-219.18906166,0.00010119,2]
[360969365,1747171831799,-200.0,0.00010123,2]
[360969366,1747171831809,-489.06092634,0.00010126,2]
[360969368,1747171831819,-3527.81304429,0.00010127,2]
[360969370,1747171831831,-567.02785561,0.00010127,2]
[360969372,1747171831843,-1419.41840479,0.00010127,2]
[360969374,1747171831858,-896.14601445,0.00010127,2]
[360969377,1747171831881,-8351.78903272,0.00010127,2]
[360969380,1747171831897,-2685.6,0.00010127,2]
[360969382,1747171831908,-10491.2953151,0.00010127,2]
[360969386,1747171831941,-5043.40180296,0.00010127,2]
[360969388,1747171831953,-2088.65244,0.00010127,2]
[360969930,1747171837433,-518.43555,0.00010127,2]
[360970151,1747171839551,-4175.6,0.00010127,2]
[360970211,1747171840119,-34.43985192,0.00010127,2]
[360970213,1747171840132,-1578.61871055,0.00010127,2]
[360970216,1747171840148,-458.74500001,0.00010127,2]
[360970218,1747171840159,-522.65,0.00010127,2]
[360970220,1747171840171,-2089.087,0.00010127,2]
[360970234,1747171840291,-322.54179362,0.00010127,2]
[360970471,1747171842632,-5370.80000007,0.00010127,2]
[360970473,1747171842644,-4078.41175,0.00010127,2]
[360970485,1747171842755,-19295.2,0.00010127,2]
[360970487,1747171842767,-3602.0,0.00010127,2]
[360970721,1747171845454,-13714.63371742,0.00010127,2]
[360970723,1747171845466,-7831.42990018,0.00010127,2]
[360970740,1747171845630,-1044.2000007,0.00010127,2]
[360970746,1747171845693,-10439.99999999,0.00010127,2]
[360970760,1747171845829,-1178.600015,0.00010127,2]
[360972492,1747171865860,-218.04292155,0.00010027,2]
[360972803,1747171870532,-210.80957351,0.00010027,2]
[360973002,1747171872520,-279.46798221,0.0001,2]
[360973260,1747171875156,-170.53201779,0.0001,2]
[360973263,1747171875180,-177.5739265,0.00010027,2]
[360973337,1747171876271,255.5754438,0.00025,60]
[360973470,1747171877629,-325.9720955,0.00010027,2]
[360973511,1747171882224,-251.98288294,0.00010027,2]
[360973512,1747171910044,773.72569211,0.00025,60]
[360973513,1747171935136,1426.44,8.219e-05,2]
[360973514,1747171965140,-92392.12017781,0.00025,120]
[360973515,1747172107705,1000.0,9.826e-05,2]
[360973516,1747172161998,-250.0,0.00010127,2]
[360973517,1747172162024,-33.0,0.00010134,2]
[360973518,1747172196819,-221.2922797,9.906e-05,2]
[360973519,1747172198251,-370.47961566,9.906e-05,2]
[360973520,1747172201279,-336.54810464,9.906e-05,2]
[360973521,1747172387169,55339.72849252,0.000135,5]
[360973522,1747172411606,26090.0675039,0.000125,5]
[360973523,1747172566019,158.55,9.79e-05,2]
[360973524,1747172567755,7415.01,9.79e-05,2]
[360973525,1747172567778,10000.0,9.79e-05,2]
[360973526,1747172567802,6484.99,9.79e-05,2]
[360973623,1747172904757,-18.82270165,0.00015,14]
[360973635,1747172938153,1355.11,8.219e-05,2]
[360973743,1747172948222,-150.0,0.00013699,7]
[360973750,1747173013014,250.0,9.758e-05,2]
[360973758,1747173031542,-350.0,0.00010134,2]
[360973759,1747173031552,-200.0,0.00010135,2]
[360973760,1747173031561,-200.0,0.00010137,2]
[360973761,1747173031571,-15.53108025,0.00010141,2]
[360973762,1747173031605,-381.79891975,0.00010141,2]
[360973763,1747173031615,-200.0,0.00010145,2]
[360973764,1747173031624,-803.59903604,0.00010177,2]
[360973765,1747173031633,-500.0,0.00010247,2]
[360973766,1747173031643,-67.32799708,0.000103,3]
[360973767,1747173031654,-132.67200292,0.000103,3]
[360973768,1747173031664,-500.0,0.000104,3]
[360973769,1747173031674,-1355.11,0.00010465,2]
[360973770,1747173031683,-207.4,0.00010494,2]
[360973771,1747173031694,-150.0,0.00010499,2]
[360973772,1747173031703,-300.0,0.00010499,2]
[360973773,1747173031713,-150.99,0.000105,2]
[360973774,1747173031722,-981.54349243,0.000105,2]
[360973775,1747173031734,-4474.8697187,0.000105,2]
[360973776,1747173031751,-3132.07812,0.000105,2]
[360973777,1747173031762,-2002.65164984,0.000105,2]
[360973778,1747173031779,-33329.60701903,0.000105,2]
[360973779,1747173031788,-800.0,0.000105,3]
[360973780,1747173031797,-803.59903604,0.00010591,2]
[360973781,1747173031806,-2234.248,0.00010599,2]
[360973782,1747173031815,-182.55,0.00010599,2]
[360973783,1747173031824,-1100.0,0.000106,3]
[360973784,1747173031834,-1300.0,0.000107,3]
[360973785,1747173031843,-200.0,0.000108,3]
[360973786,1747173031852,-803.59903604,0.00010817,2]
[360973787,1747173031862,-343.5463,0.00010858,2]
[360973788,1747173031871,-150.85022912,0.00010881,2]
[360973789,1747173031880,-158.38459342,0.00010882,2]
[360973790,1747173031889,-166.16748178,0.00010892,2]
[360973791,1747173031899,-200.0,0.000109,3]
[360973792,1747173031908,-400.6768714,0.000109,2]
[360973793,1747173031918,-190.78567093,0.000109,2]
[360973794,1747173031927,-151.0747425,0.00010944,2]
[360973795,1747173031936,-3056.27471942,0.00010948,2]
[360973796,1747173031946,-347.3682453,0.00010958,2]
[360973797,1747173031955,-188.73955999,0.00010958,2]
[360973798,1747173031964,-400.0,0.00010958,2]
[360973799,1747173031974,-400.0,0.00010958,2]
[360973800,1747173031983,-400.0,0.00010958,2]
[360973801,1747173031992,-400.0,0.00010958,2]
[360973802,1747173032002,-606.55,0.00010958,2]
[360973804,1747173032011,-400.0,0.00010958,2]
[360973805,1747173032020,-400.0,0.00010958,2]
[360973807,1747173032029,-400.0,0.00010958,2]
[360973809,1747173032038,-400.0,0.00010958,2]
[360973811,1747173032047,-467.57,0.00010958,2]
[360973812,1747173032056,-400.0,0.00010958,2]
[360973815,1747173032282,-402.98,0.00010958,2]
[360973816,1747173032292,-400.0,0.00010958,2]
[360973817,1747173032301,-400.0,0.00010958,2]
[360973818,1747173032311,-400.0,0.00010958,2]
[360973819,1747173032320,-400.0,0.00010958,2]
[360973820,1747173032329,-400.0,0.00010958,2]
[360973821,1747173032338,-572.35,0.00010958,2]
[360973822,1747173032348,-749.09,0.00010958,2]
[360973823,1747173032357,-400.0,0.00010958,2]
[360973824,1747173032366,-267.26373347,0.00010958,2]
[360973825,1747173032378,-132.73626653,0.00010958,2]
[360973826,1747173032388,-400.0,0.00010958,2]
[360973827,1747173032397,-337.13000175,0.00010958,2]
[360973828,1747173032407,-400.0,0.00010958,2]
[360973829,1747173032416,-400.0,0.00010958,2]
[360973830,1747173032426,-338.12127004,0.00010958,2]
[360973831,1747173032435,-400.0,0.00010958,2]
[360973832,1747173032445,-400.0,0.00010958,2]
[360973833,1747173032455,-159.68057744,0.00010958,2]
[360973834,1747173032467,-240.31942256,0.00010958,2]
[360973835,1747173032476,-475.62,0.00010958,2]
[360973836,1747173032488,-400.0,0.00010958,2]
[360973837,1747173032497,-400.0,0.00010958,2]
[360973838,1747173032507,-400.0,0.00010958,2]
[360973839,1747173032517,-637.39058661,0.00010958,2]
[360973840,1747173032530,-161.91941339,0.00010958,2]
[360973841,1747173032539,-226.08942412,0.00010958,2]
[360973842,1747173032550,-173.91057588,0.00010958,2]
[360973843,1747173032559,-400.0,0.00010958,2]
[360973844,1747173032569,-0.5151562,0.00010958,2]
[360973845,1747173032593,-420.3748438,0.00010958,2]
[360973846,1747173032603,-400.0,0.00010958,2]
[360973847,1747173032612,-435.0,0.00010958,2]
[360973848,1747173032621,-601.28,0.00010958,2]
[360973849,1747173032630,-400.0,0.00010958,2]
[360973850,1747173032640,-891.0,0.00010958,2]
[360973851,1747173032649,-400.0,0.00010958,2]
[360973852,1747173032658,-400.0,0.00010958,2]
[360973853,1747173032668,-400.0,0.00010958,2]
[360973854,1747173032677,-400.0,0.00010958,2]
[360973855,1747173032686,-549.79,0.00010958,2]
[360973856,1747173032698,-400.0,0.00010958,2]
[360973857,1747173032708,-547.58,0.00010958,2]
[360973858,1747173032717,-400.0,0.00010958,2]
[360973859,1747173032727,-511.44,0.00010958,2]
[360973860,1747173032736,-400.0,0.00010958,2]
[360973861,1747173032746,-446.04,0.00010958,2]
[360973862,1747173032756,-400.0,0.00010958,2]
[360973863,1747173032765,-400.0,0.00010958,2]
[360973864,1747173032774,-400.0,0.00010958,2]
[360973865,1747173032784,-400.0,0.00010958,2]
[360973866,1747173032794,-400.0,0.00010958,2]
[360973867,1747173032803,-405.75,0.00010958,2]
[360973868,1747173032812,-400.0,0.00010958,2]
[360973869,1747173032821,-400.0,0.00010958,2]
[360973870,1747173032830,-400.0,0.00010958,2]
[360973871,1747173032839,-578.72,0.00010958,2]
[360973872,1747173032849,-400.0,0.00010958,2]
[360973873,1747173032858,-400.0,0.00010958,2]
[360973874,1747173032868,-400.0,0.00010958,2]
[360973875,1747173032877,-400.0,0.00010958,2]
[360973876,1747173032886,-807.36,0.00010958,2]
[360973877,1747173032895,-400.0,0.00010958,2]
[360973878,1747173032904,-400.0,0.00010958,2]
[360973879,1747173032914,-400.0,0.00010958,2]
[360973880,1747173032923,-585.94,0.00010958,2]
[360973881,1747173032932,-400.0,0.00010958,2]
[360973882,1747173032943,-438.70002342,0.00010958,2]
[360973883,1747173032952,-400.0,0.00010958,2]
[360973884,1747173032962,-400.0,0.00010958,2]
[360973885,1747173032971,-40.36061448,0.00010958,2]
[360973886,1747173032984,-420.90938552,0.00010958,2]
[360973887,1747173032993,-177.29294497,0.00010958,2]
[360973888,1747173033005,-222.70705503,0.00010958,2]
[360973889,1747173033014,-400.0,0.00010958,2]
[360973890,1747173033024,-352.75445753,0.00010958,2]
[360973891,1747173033034,-400.0,0.00010958,2]
[360973892,1747173033043,-400.0,0.00010958,2]
[360973893,1747173033053,-400.0,0.00010958,2]
[360973894,1747173033062,-400.0,0.00010958,2]
[360973895,1747173033071,-406.53416013,0.00010958,2]
[360973896,1747173033080,-241.4058417,0.00010958,2]
[360973897,1747173033092,-158.5941583,0.00010958,2]
[360973898,1747173033101,-981.65,0.00010958,2]
[360973899,1747173033110,-400.0,0.00010958,2]
[360973900,1747173033120,-400.0,0.00010958,2]
[360973901,1747173033129,-400.0,0.00010958,2]
[360973902,1747173033139,-400.0,0.00010958,2]
[360973903,1747173033149,-400.0,0.00010958,2]
[360973904,1747173033159,-400.0,0.00010958,2]
[360973905,1747173033168,-400.0,0.00010958,2]
[360973906,1747173033177,-400.0,0.00010958,2]
[360973907,1747173033187,-1035.38,0.00010958,2]
[360973908,1747173033196,-400.0,0.00010958,2]
[360973909,1747173033206,-400.0,0.00010958,2]
[360973910,1747173033216,-400.0,0.00010958,2]
[360973911,1747173033225,-526.81,0.00010958,2]
[360973912,1747173033236,-400.0,0.00010958,2]
[360973913,1747173033245,-114.47755944,0.00010958,2]
[360973914,1747173033263,-285.52244056,0.00010958,2]
[360973915,1747173033272,-202.30955784,0.00010958,2]
[360973916,1747173033284,-197.69044216,0.00010958,2]
[360973917,1747173033293,-789.58,0.00010958,2]
[360973918,1747173033302,-400.0,0.00010958,2]
[360973919,1747173033315,-400.0,0.00010958,2]
[360973920,1747173033325,-400.0,0.00010958,2]
[360973921,1747173033334,-313.85568221,0.00010958,2]
[360973922,1747173033344,-282.6789689,0.00010958,2]
[360973923,1747173033356,-117.3210311,0.00010958,2]
[360973924,1747173033366,-400.0,0.00010958,2]
[360973925,1747173033375,-400.0,0.00010958,2]
[360973926,1747173033385,-537.23105933,0.00010958,2]
[360973927,1747173033395,-400.0,0.00010958,2]
[360973928,1747173033404,-400.0,0.00010958,2]
[360973929,1747173033414,-400.0,0.00010958,2]
[360973930,1747173033424,-400.0,0.00010958,2]
[360973931,1747173033433,-716.28,0.00010958,2]
[360973932,1747173033443,-423.03790979,0.00010958,2]
[360973933,1747173033454,-100.13209021,0.00010958,2]
[360973934,1747173033464,-400.0,0.00010958,2]
[360973935,1747173033473,-487.5,0.00010958,2]
[360973936,1747173033483,-400.0,0.00010958,2]
[360973937,1747173033493,-1033.87,0.00010958,2]
[360973938,1747173033503,-264.09790979,0.00010958,2]
[360973952,1747173042338,-500.0,0.00010133,2]
[360973953,1747173042347,-38.46,0.00010133,2]
[360973954,1747173042359,-270.206279,0.00010133,2]
[360973955,1747173042368,-201.21209021,0.00010958,2]
[360973956,1747173042377,-50.53163079,0.00010958,2]
[360973957,1747173042394,-349.46836921,0.00010958,2]
[360973958,1747173042403,-400.0,0.00010958,2]
[360973959,1747173042412,-400.0,0.00010958,2]
[360973960,1747173042422,-1685.05,0.00010958,2]
[360973961,1747173042431,-489.64,0.00010958,2]
[360973962,1747173042441,-400.0,0.00010958,2]
[360973963,1747173042451,-400.0,0.00010958,2]
[360973964,1747173042461,-400.0,0.00010958,2]
[360973965,1747173042470,-400.0,0.00010958,2]
[360973966,1747173042480,-829.83,0.00010958,2]
[360973967,1747173042489,-400.0,0.00010958,2]
[360973968,1747173042499,-400.0,0.00010958,2]
[360973969,1747173042509,-400.0,0.00010958,2]
[360973970,1747173042519,-714.3,0.00010958,2]
[360973971,1747173042528,-400.0,0.00010958,2]
[360973972,1747173042537,-478.78,0.00010958,2]
[360973973,1747173042546,-400.0,0.00010958,2]
[360973974,1747173042555,-400.0,0.00010958,2]
[360973976,1747173042564,-663.74,0.00010958,2]
[360973978,1747173042574,-400.0,0.00010958,2]
[360973979,1747173042583,-400.0,0.00010958,2]
[360973980,1747173042593,-400.0,0.00010958,2]
[360973981,1747173042602,-329.94388661,0.00010958,2]
[360973982,1747173042611,-1076.89,0.00010958,2]
[360973983,1747173042620,-400.0,0.00010958,2]
[360973984,1747173042630,-400.0,0.00010958,2]
[360973985,1747173042639,-400.0,0.00010958,2]
[360973986,1747173042648,-400.0,0.00010958,2]
[360973987,1747173042657,-400.0,0.00010958,2]
[360973988,1747173042666,-717.42,0.00010958,2]
[360973989,1747173042676,-699.08,0.00010958,2]
[360973990,1747173042685,-594.42,0.00010958,2]
[360973991,1747173042696,-565.7,0.00010958,2]
[360973992,1747173042705,-400.0,0.00010958,2]
[360973993,1747173042714,-186.82468062,0.00010958,2]
[360973994,1747173042724,-1083.29,0.00010958,2]
[360973995,1747173042734,-400.0,0.00010958,2]
[360973996,1747173042743,-602.08,0.00010958,2]
[360973997,1747173042753,-400.0,0.00010958,2]
[360973998,1747173042762,-400.0,0.00010958,2]
[360973999,1747173042771,-632.771574,0.00010958,2]
[360974000,1747173042797,-79.288426,0.00010958,2]
[360974001,1747173042806,-982.39,0.00010958,2]
[360974002,1747173042815,-473.91,0.00010958,2]
[360974003,1747173042824,-921.46,0.00010958,2]
[360974004,1747173042834,-400.0,0.00010958,2]
[360974005,1747173042843,-400.0,0.00010958,2]
[360974006,1747173042852,-385.5333081,0.00010958,2]
[360974007,1747173042862,-400.0,0.00010958,2]
[360974008,1747173042871,-1237.8,0.00010958,2]
[360974009,1747173042880,-1042.22,0.00010958,2]
[360974010,1747173042889,-612.83,0.00010958,2]
[360974011,1747173042899,-400.0,0.00010958,2]
[360974012,1747173042908,-400.0,0.00010958,2]
[360974013,1747173042917,-1464.29,0.00010958,2]
[360974014,1747173042927,-400.0,0.00010958,2]
[360974015,1747173042936,-851.49,0.00010958,2]
[360974016,1747173042946,-1267.46,0.00010958,2]
[360974017,1747173042956,-951.7010381,0.00010958,2]
[360974018,1747173042965,-527.55,0.00010958,2]
[360974019,1747173042975,-400.0,0.00010958,2]
[360974020,1747173042984,-400.0,0.00010958,2]
[360974021,1747173042994,-400.0,0.00010958,2]
[360974022,1747173043003,-437.35,0.00010958,2]
[360974023,1747173043013,-400.0,0.00010958,2]
[360974024,1747173043022,-400.0,0.00010958,2]
[360974025,1747173043032,-1729.71,0.00010958,2]
[360974026,1747173043041,-400.0,0.00010958,2]
[360974027,1747173043051,-416.8,0.00010958,2]
[360974028,1747173043062,-400.0,0.00010958,2]
[360974029,1747173043071,-400.0,0.00010958,2]
[360974030,1747173043081,-763.32,0.00010958,2]
[360974031,1747173043094,-400.0,0.00010958,2]
[360974032,1747173043104,-404.52,0.00010958,2]
[360974033,1747173043114,-400.0,0.00010958,2]
[360974034,1747173043124,-466.18,0.00010958,2]
[360974035,1747173043133,-400.0,0.00010958,2]
[360974036,1747173043143,-550.51,0.00010958,2]
[360974037,1747173043152,-400.0,0.00010958,2]
[360974038,1747173043162,-400.0,0.00010958,2]
[360974039,1747173043172,-400.0,0.00010958,2]
[360974040,1747173043182,-667.03,0.00010958,2]
[360974041,1747173043192,-1496.98,0.00010958,2]
[360974042,1747173043203,-865.83,0.00010958,2]
[360974043,1747173043213,-557.47,0.00010958,2]
[360974044,1747173043222,-400.0,0.00010958,2]
[360974045,1747173043232,-400.0,0.00010958,2]
[360974046,1747173043243,-1220.41,0.00010958,2]
[360974047,1747173043255,-400.0,0.00010958,2]
[360974048,1747173043265,-400.0,0.00010958,2]
[360974049,1747173043275,-1062.39,0.00010958,2]
[360974050,1747173043287,-400.0,0.00010958,2]
[360974051,1747173043296,-400.0,0.00010958,2]
[360974052,1747173043306,-400.0,0.00010958,2]
[360974053,1747173043315,-400.0,0.00010958,2]
[360974055,1747173043324,-400.0,0.00010958,2]
[360974057,1747173043334,-1255.67,0.00010958,2]
[360974059,1747173043344,-400.0,0.00010958,2]
[360974061,1747173043353,-400.0,0.00010958,2]
[360974062,1747173043362,-1207.74,0.00010958,2]
[360974063,1747173043372,-1544.74,0.00010958,2]
[360974064,1747173043381,-400.0,0.00010958,2]
[360974065,1747173043390,-637.41,0.00010958,2]
[360974066,1747173043400,-551.74,0.00010958,2]
[360974067,1747173043409,-461.77,0.00010958,2]
[360974068,1747173043418,-400.0,0.00010958,2]
[360974069,1747173043427,-400.0,0.00010958,2]
[360974070,1747173043437,-400.0,0.00010958,2]
[360974071,1747173043446,-400.0,0.00010958,2]
[360974072,1747173043455,-400.0,0.00010958,2]
[360974073,1747173043466,-400.0,0.00010958,2]
[360974074,1747173043475,-491.9,0.00010958,2]
[360974075,1747173043485,-400.0,0.00010958,2]
[360974076,1747173043495,-680.5,0.00010958,2]
[360974077,1747173043505,-400.0,0.00010958,2]
[360974078,1747173043517,-652.14,0.00010958,2]
[360974079,1747173043527,-413.94,0.00010958,2]
[360974080,1747173043536,-400.0,0.00010958,2]
[360974081,1747173043547,-400.0,0.00010958,2]
[360974082,1747173043557,-400.0,0.00010958,2]
[360974083,1747173043567,-609.69,0.00010958,2]
[360974084,1747173043577,-400.0,0.00010958,2]
[360974085,1747173043587,-400.0,0.00010958,2]
[360974086,1747173043597,-400.0,0.00010958,2]
[360974087,1747173043608,-210.36381264,0.00010958,2]
[360974088,1747173043619,-400.0,0.00010958,2]
[360974089,1747173043628,-1804.03,0.00010958,2]
[360974090,1747173043638,-400.0,0.00010958,2]
[360974091,1747173043650,-400.0,0.00010958,2]
[360974092,1747173043660,-457.48,0.00010958,2]
[360974093,1747173043670,-400.0,0.00010958,2]
[360974094,1747173043681,-421.69,0.00010958,2]
[360974095,1747173043690,-400.0,0.00010958,2]
[360974096,1747173043699,-283.32993058,0.00010958,2]
[360974097,1747173043709,-400.0,0.00010958,2]
[360974098,1747173043719,-400.0,0.00010958,2]
[360974099,1747173043728,-1645.09,0.00010958,2]
[360974100,1747173043737,-1070.51,0.00010958,2]
[360974101,1747173043749,-4211.68,0.00010958,2]
[360974102,1747173043760,-616.33,0.00010958,2]
[360974103,1747173043770,-400.0,0.00010958,2]
[360974104,1747173043779,-400.0,0.00010958,2]
[360974105,1747173043789,-400.0,0.00010958,2]
[360974106,1747173043798,-1554.62,0.00010958,2]
[360974107,1747173043809,-400.0,0.00010958,2]
[360974108,1747173043818,-1944.42,0.00010958,2]
[360974109,1747173043828,-1108.0,0.00010958,2]
[360974110,1747173043838,-400.0,0.00010958,2]
[360974111,1747173043849,-400.0,0.00010958,2]
[360974112,1747173043859,-1059.84,0.00010958,2]
[360974113,1747173043868,-469.25,0.00010958,2]
[360974114,1747173043878,-641.54,0.00010958,2]
[360974115,1747173043887,-400.0,0.00010958,2]
[360974116,1747173043897,-1055.46,0.00010958,2]
[360974117,1747173043907,-400.0,0.00010958,2]
[360974118,1747173043916,-400.0,0.00010958,2]
[360974119,1747173043926,-989.43,0.00010958,2]
[360974120,1747173043936,-400.0,0.00010958,2]
[360974121,1747173043946,-1839.07,0.00010958,2]
[360974122,1747173043955,-480.17,0.00010958,2]
[360974123,1747173043966,-400.0,0.00010958,2]
[360974124,1747173043975,-400.0,0.00010958,2]
[360974125,1747173043985,-400.0,0.00010958,2]
[360974126,1747173043995,-400.0,0.00010958,2]
[360974127,1747173044005,-400.0,0.00010958,2]
[360974128,1747173044014,-206.64849777,0.00010958,2]
[360974129,1747173044024,-1047.61,0.00010958,2]
[360974130,1747173044033,-400.0,0.00010958,2]
[360974131,1747173044043,-889.96,0.00010958,2]
[360974132,1747173044053,-476.62401399,0.00010958,2]
[360974133,1747173044063,-400.0,0.00010958,2]
[360974134,1747173044072,-601.62,0.00010958,2]
[360974135,1747173044082,-1776.36,0.00010958,2]
[360974136,1747173044258,-400.0,0.00010958,2]
[360974137,1747173044268,-2989.46,0.00010958,2]
[360974138,1747173044278,-1598.020913,0.00010958,2]
[360974139,1747173044291,-159.144313,0.00010958,2]
[360974140,1747173044300,-540.00695184,0.00010958,2]
[360974141,1747173044310,-402.74295874,0.00010958,2]
[360974142,1747173044320,-400.0,0.00010958,2]
[360974143,1747173044330,-692.0,0.00010958,2]
[360974144,1747173044340,-702.97,0.00010958,2]
[360974145,1747173044350,-400.0,0.00010958,2]
[360974146,1747173044359,-400.0,0.00010958,2]
[360974147,1747173044368,-400.0,0.00010958,2]
[360974148,1747173044378,-657.19,0.00010958,2]
[360974149,1747173044387,-5044.06,0.00010958,2]
[360974150,1747173044398,-415.42,0.00010958,2]
[360974151,1747173044409,-400.0,0.00010958,2]
[360974152,1747173044419,-1051.41,0.00010958,2]
[360974153,1747173044428,-400.0,0.00010958,2]
[360974154,1747173044438,-460.54,0.00010958,2]
[360974155,1747173044447,-304.9841,0.00010958,2]
[360974156,1747173044457,-400.0,0.00010958,2]
[360974157,1747173044467,-400.0,0.00010958,2]
[360974158,1747173044476,-400.0,0.00010958,2]
[360974159,1747173044485,-400.0,0.00010958,2]
[360974160,1747173044494,-428.72,0.00010958,2]
[360974161,1747173044503,-609.15,0.00010958,2]
[360974162,1747173044513,-622.25,0.00010958,2]
[360974163,1747173044522,-326.01463505,0.00010958,2]
[360974164,1747173044531,-1872.7,0.00010958,2]
[360974165,1747173044541,-508.86382534,0.00010958,2]
[360974166,1747173044550,-330.62981563,0.00010973,2]
[360974167,1747173044560,-626.93593664,0.00010973,2]
[360974168,1747173044570,-500.0,0.00010973,2]
[360974169,1747173044579,-500.0,0.00010973,2]
[360974170,1747173044589,-500.0,0.00010973,2]
[360974171,1747173044598,-500.0,0.00010973,2]
[360974172,1747173044607,-416.42490021,0.00010975,2]
[360974173,1747173044617,-287.61899177,0.00010975,2]
[360974174,1747173044626,-151.0,0.00010975,2]
[360974175,1747173044636,-1050.66198297,0.0001098,3]
[360974176,1747173044646,-400.0,0.0001098,2]
[360974177,1747173044655,-400.0,0.0001098,2]
[360974178,1747173044665,-400.0,0.0001098,2]
[360974179,1747173044674,-422.68385831,0.0001098,2]
[360974180,1747173044683,-400.0,0.0001098,2]
[360974181,1747173044693,-400.0,0.0001098,2]
[360974182,1747173044703,-400.0,0.0001098,2]